fUSD/lending_fUSD_20260613
["ID","MTS","AMOUNT","RATE_DAILY","PERIOD"]
[424976407,1781365849000,-150.0,0.00027397,2]
[424976410,1781365849000,-150.0,0.00027397,2]
[424976411,1781365849000,-150.0,0.00027397,2]
[424976408,1781365849000,-150.0,0.00027397,2]
[424976409,1781365849000,-150.0,0.00027397,2]
[424976412,1781365849000,-150.0,0.00027397,2]
[424976415,1781365849000,-150.0,0.00027397,2]
[424976414,1781365849000,-150.0,0.00027397,2]
[424976416,1781365849000,-150.0,0.00027397,2]
[424976418,1781365849000,-150.0,0.00027397,2]
[424976417,1781365849000,-150.0,0.00027397,2]
[424976424,1781365849000,-164.6218825,0.00027397,7]
[424976421,1781365849000,-300.0,0.00027397,2]
[424976428,1781365849000,-908.7,0.000274,7]
[424976422,1781365849000,-20637.37,0.00027397,10]
[424976419,1781365849000,-2631.58163766,0.00027397,2]
[424976426,1781365849000,-1000.0,0.00027397,30]
[424976423,1781365849000,-215.73238937,0.00027397,7]
[424976459,1781365849000,-356.05,0.00027641,2]
[424976425,1781365849000,-159.15609098,0.00027397,7]
[424976461,1781365849000,-200.0,0.00027652,2]
[424976490,1781365849000,-295.96,0.00027872,2]
[424976491,1781365849000,-9737.06,0.00027872,2]
[424976492,1781365849000,-1176.76,0.00027872,2]
[424976493,1781365849000,-3405.25,0.00027872,2]
[424976494,1781365849000,-10776.29,0.00027872,2]
[424976513,1781365849000,-2000.0,0.00028011,2]
[424976489,1781365849000,-945.39,0.00027872,2]
[424976496,1781365849000,-743.22,0.00027885,30]
[424976495,1781365849000,-356.05,0.00027885,30]
[424976497,1781365849000,-356.05,0.00027916,2]
[424976499,1781365849000,-310.0,0.00027918,2]
[424976498,1781365849000,-743.22,0.00027916,2]
[424976501,1781365849000,-743.22,0.00027946,7]
[424976500,1781365849000,-356.05,0.00027946,7]
[424976502,1781365849000,-2000.0,0.00027968,2]
[424976503,1781365849000,-2000.0,0.00027968,2]
[424976458,1781365849000,-165.86265129,0.0002762,2]
[424976504,1781365849000,-1622.53,0.00027968,2]
[424976506,1781365849000,-356.05,0.00027977,30]
[424976508,1781365849000,-216.029201,0.00028,30]
[424976509,1781365849000,-200.0,0.00028,2]
[424976507,1781365849000,-743.22,0.00027977,30]
[424976511,1781365849000,-743.22,0.00028007,2]
[424976510,1781365849000,-356.05,0.00028007,2]
[424976512,1781365849000,-2000.0,0.00028011,2]
[424976488,1781365849000,-743.22,0.00027855,7]
[424976481,1781365849000,-309.0,0.00027825,10]
[424976505,1781365849000,-150.0,0.00027973,2]
[424976480,1781365849000,-743.22,0.00027824,2]
[424976482,1781365849000,-250.0,0.0002784,2]
[424976456,1781365849000,-252.36257952,0.00027613,2]
[424976462,1781365849000,-356.05,0.00027672,7]
[424976455,1781365849000,-743.22,0.00027611,30]
[424976454,1781365849000,-356.05,0.00027611,30]
[424976466,1781365849000,-945.39,0.00027711,7]
[424976467,1781365849000,-295.96,0.00027711,7]
[424976465,1781365849000,-743.22,0.00027702,30]
[424976464,1781365849000,-356.05,0.00027702,30]
[424976469,1781365849000,-1176.76,0.00027711,7]
[424976470,1781365849000,-3405.25,0.00027711,7]
[424976473,1781365849000,-743.22,0.00027733,2]
[424976474,1781365849000,-356.05,0.00027763,7]
[424976463,1781365849000,-743.22,0.00027672,7]
[424976468,1781365849000,-9737.06,0.00027711,7]
[424976483,1781365849000,-250.0,0.0002784,2]
[424976472,1781365849000,-356.05,0.00027733,2]
[424976479,1781365849000,-356.05,0.00027824,2]
[424976477,1781365849000,-743.22,0.00027794,30]
[424976487,1781365849000,-356.05,0.00027855,7]
[424976478,1781365849000,-908.7,0.000278,7]
[424976486,1781365849000,-250.0,0.0002784,2]
[424976485,1781365849000,-250.0,0.0002784,2]
[424976476,1781365849000,-356.05,0.00027794,30]
[424976471,1781365849000,-10776.29,0.00027711,7]
[424976475,1781365849000,-743.22,0.00027763,7]
[424976484,1781365849000,-250.0,0.0002784,2]
[424976535,1781365850000,-290.3986294,0.00028161,2]
[424976541,1781365850000,-10776.29,0.00028194,7]
[424976537,1781365850000,-295.96,0.00028194,7]
[424976536,1781365850000,-945.39,0.00028194,7]
[424976534,1781365850000,-252.36257952,0.00028161,2]
[424976539,1781365850000,-1176.76,0.00028194,7]
[424976540,1781365850000,-3405.25,0.00028194,7]
[424976543,1781365850000,-22395.90301406,0.00028222,2]
[424976545,1781365850000,-152.0,0.00028281,7]
[424976544,1781365850000,-1579.9,0.00028267,2]
[424976542,1781365850000,-908.7,0.000282,7]
[424976547,1781365850000,-505.0,0.00028333,11]
[424976548,1781365850000,-501.0,0.00028333,11]
[424976549,1781365850000,-3557.0,0.00028335,2]
[424976555,1781365850000,-419.0,0.00028335,2]
[424976538,1781365850000,-9737.06,0.00028194,7]
[424976546,1781365850000,-6825.85,0.0002832,7]
[424976533,1781365850000,-250.0,0.0002813,2]
[424976514,1781365850000,-2000.0,0.00028011,2]
[424976531,1781365850000,-250.0,0.0002813,2]
[424976519,1781365850000,-1176.76,0.00028033,30]
[424976517,1781365850000,-295.96,0.00028033,30]
[424976520,1781365850000,-3405.25,0.00028033,30]
[424976518,1781365850000,-9737.06,0.00028033,30]
[424976515,1781365850000,-1620.57,0.00028011,2]
[424976516,1781365850000,-945.39,0.00028033,30]
[424976522,1781365850000,-356.05,0.00028038,7]
[424976532,1781365850000,-250.0,0.0002813,2]
[424976523,1781365850000,-743.22,0.00028038,7]
[424976527,1781365850000,-743.22,0.00028099,2]
[424976528,1781365850000,-356.18,0.0002813,7]
[424976525,1781365850000,-743.22,0.00028068,30]
[424976524,1781365850000,-356.05,0.00028068,30]
[424976526,1781365850000,-356.05,0.00028099,2]
[424976529,1781365850000,-743.27,0.0002813,7]
[424976530,1781365850000,-250.0,0.0002813,2]
[424976521,1781365850000,-10776.29,0.00028033,30]
[424976557,1781365850000,-315.91384434,0.00028397,7]
[424976552,1781365850000,-1275.0,0.00028335,2]
[424976554,1781365850000,-6076.0,0.00028335,2]
[424976577,1781365850000,-439.06993886,0.00028568,7]
[424976572,1781365850000,-329.24376499,0.00028568,7]
[424976578,1781365850000,-387.50771227,0.00028568,7]
[424976579,1781365850000,-345.56211685,0.00028568,7]
[424976580,1781365850000,-413.0,0.0002859,2]
[424976581,1781365850000,-4868.862,0.0002859,20]
[424976582,1781365850000,-214.282,0.0002859,20]
[424976574,1781365850000,-311.0956463,0.00028568,7]
[424976583,1781365850000,-3000.0,0.00028591,2]
[424976585,1781365850000,-2228.0,0.00028592,2]
[424976587,1781365850000,-153.0,0.00028625,3]
[424976586,1781365850000,-908.7,0.000286,7]
[424976590,1781365850000,-300.62386802,0.00028648,7]
[424976589,1781365850000,-371.05491377,0.00028642,7]
[424976591,1781365850000,-441.04280785,0.00028648,7]
[424976556,1781365850000,-551.31464824,0.00028397,7]
[424976588,1781365850000,-338.71080219,0.00028642,7]
[424976573,1781365850000,-412.11467324,0.00028568,7]
[424976584,1781365850000,-2243.0,0.00028592,2]
[424976571,1781365850000,-335.85576376,0.00028568,7]
[424976551,1781365850000,-383.0,0.00028335,2]
[424976575,1781365850000,-155.39300215,0.00028568,2]
[424976550,1781365850000,-1359.0,0.00028335,2]
[424976558,1781365850000,-250.0,0.0002842,2]
[424976553,1781365850000,-1228.0,0.00028335,2]
[424976564,1781365850000,-317.07727489,0.00028568,7]
[424976566,1781365850000,-232.88890783,0.00028568,7]
[424976561,1781365850000,-150.0,0.00028493,2]
[424976563,1781365850000,-316.87860274,0.00028568,7]
[424976567,1781365850000,-431.46477873,0.00028568,7]
[424976565,1781365850000,-408.36721258,0.00028568,7]
[424976568,1781365850000,-350.63304823,0.00028568,7]
[424976562,1781365850000,-885.06,0.00028568,120]
[424976560,1781365850000,-250.0,0.0002842,2]
[424976569,1781365850000,-316.03618511,0.00028568,7]
[424976576,1781365850000,-183.34205811,0.00028568,2]
[424976559,1781365850000,-250.0,0.0002842,2]
[424976570,1781365850000,-315.59198742,0.00028568,7]
[424976626,1781365851000,-320.38155158,0.00028665,7]
[424976625,1781365851000,-306.14415614,0.00028665,7]
[424976623,1781365851000,-399.92776669,0.00028665,7]
[424976629,1781365851000,-354.94655438,0.00028665,7]
[424976622,1781365851000,-492.30025162,0.00028665,7]
[424976624,1781365851000,-543.81266995,0.00028665,7]
[424976620,1781365851000,-329.22191197,0.00028665,7]
[424976632,1781365851000,-317.24337393,0.0002867,7]
[424976621,1781365851000,-336.25729222,0.00028665,7]
[424976628,1781365851000,-403.77201699,0.00028665,7]
[424976630,1781365851000,-150.57429698,0.00028665,7]
[424976635,1781365851000,-368.89706146,0.0002867,7]
[424976627,1781365851000,-382.5677477,0.00028665,7]
[424976634,1781365851000,-323.32243247,0.0002867,7]
[424976643,1781365851000,-202.92923087,0.0002867,7]
[424976642,1781365851000,-308.60830877,0.0002867,7]
[424976636,1781365851000,-373.93728259,0.0002867,7]
[424976633,1781365851000,-315.10061283,0.0002867,7]
[424976637,1781365851000,-304.74508198,0.0002867,7]
[424976638,1781365851000,-346.40663031,0.0002867,7]
[424976639,1781365851000,-317.54077898,0.0002867,7]
[424976641,1781365851000,-303.09914268,0.0002867,7]
[424976617,1781365851000,-399.37298651,0.00028665,7]
[424976631,1781365851000,-337.83726929,0.0002867,7]
[424976614,1781365851000,-424.45545269,0.00028648,7]
[424976595,1781365851000,-342.19283278,0.00028648,7]
[424976618,1781365851000,-243.94989901,0.00028665,7]
[424976640,1781365851000,-346.53736791,0.0002867,7]
[424976592,1781365851000,-243.44750789,0.00028648,7]
[424976597,1781365851000,-210.29100766,0.00028648,7]
[424976593,1781365851000,-237.29417436,0.00028648,7]
[424976594,1781365851000,-359.77722026,0.00028648,7]
[424976596,1781365851000,-405.97868775,0.00028648,7]
[424976598,1781365851000,-376.01790611,0.00028648,7]
[424976599,1781365851000,-168.62001591,0.00028648,7]
[424976600,1781365851000,-241.45217659,0.00028648,7]
[424976604,1781365851000,-155.15033319,0.00028648,7]
[424976601,1781365851000,-301.08725553,0.00028648,7]
[424976619,1781365851000,-364.20045637,0.00028665,2]
[424976603,1781365851000,-306.58749095,0.00028648,7]
[424976610,1781365851000,-175.98527621,0.00028648,2]
[424976605,1781365851000,-176.72664511,0.00028648,2]
[424976609,1781365851000,-247.02892797,0.00028648,5]
[424976606,1781365851000,-248.28950335,0.00028648,7]
[424976602,1781365851000,-369.42771245,0.00028648,7]
[424976608,1781365851000,-155.76910114,0.00028648,2]
[424976612,1781365851000,-226.40288704,0.00028648,7]
[424976611,1781365851000,-194.8392793,0.00028648,7]
[424976616,1781365851000,-220.62660573,0.00028665,7]
[424976615,1781365851000,-220.57456637,0.00028648,7]
[424976613,1781365851000,-205.46414914,0.00028648,7]
[424976607,1781365851000,-346.81151756,0.00028648,5]
[424976644,1781365851000,-644.79446245,0.00028706,2]
[424976693,1781365851000,-350.0,0.0002888,4]
[424976651,1781365851000,-250.0,0.0002871,2]
[424976676,1781365851000,-885.06,0.00028799,120]
[424976675,1781365851000,-885.06,0.00028799,120]
[424976677,1781365851000,-885.06,0.00028799,120]
[424976679,1781365851000,-885.06,0.00028799,120]
[424976682,1781365851000,-33283.9248,0.000288,2]
[424976680,1781365851000,-885.06,0.00028799,120]
[424976681,1781365851000,-885.06,0.00028799,120]
[424976678,1781365851000,-885.06,0.00028799,120]
[424976683,1781365851000,-2000.0,0.000288,2]
[424976685,1781365851000,-3400.0,0.000288,10]
[424976687,1781365851000,-350.0,0.00028805,4]
[424976670,1781365851000,-7718.4,0.00028799,120]
[424976686,1781365851000,-722.0,0.00028802,2]
[424976697,1781365851000,-693.0,0.000289,2]
[424976698,1781365851000,-200.0,0.000289,2]
[424976688,1781365851000,-193.82296103,0.00028818,3]
[424976689,1781365851000,-350.0,0.0002885,5]
[424976695,1781365851000,-203.40783748,0.000289,120]
[424976694,1781365851000,-10310.022,0.000289,2]
[424976692,1781365851000,-150.0,0.00028855,2]
[424976691,1781365851000,-150.0,0.00028855,2]
[424976645,1781365851000,-151.0,0.00028706,2]
[424976690,1781365851000,-500.0,0.00028855,2]
[424976696,1781365851000,-4500.0,0.000289,10]
[424976684,1781365851000,-597.98,0.000288,7]
[424976672,1781365851000,-150.0,0.00028799,20]
[424976699,1781365851000,-200.0,0.0002891,2]
[424976674,1781365851000,-191.13315145,0.00028799,120]
[424976671,1781365851000,-7718.4,0.00028799,120]
[424976646,1781365851000,-804.17102365,0.00028706,2]
[424976647,1781365851000,-3000.0,0.00028708,2]
[424976653,1781365851000,-1751.25,0.00028731,2]
[424976649,1781365851000,-252.36257953,0.00028709,2]
[424976648,1781365851000,-1202.99,0.00028708,2]
[424976652,1781365851000,-250.0,0.0002871,2]
[424976655,1781365851000,-250.87384275,0.00028734,2]
[424976665,1781365851000,-7718.4,0.00028799,120]
[424976662,1781365851000,-151.0,0.00028797,7]
[424976660,1781365851000,-218.0466575,0.00028767,2]
[424976657,1781365851000,-4025.0,0.00028745,10]
[424976650,1781365851000,-301.14337869,0.00028709,2]
[424976654,1781365851000,-2171.21570455,0.00028734,2]
[424976659,1781365851000,-500.0,0.00028767,2]
[424976668,1781365851000,-7718.4,0.00028799,120]
[424976666,1781365851000,-7718.4,0.00028799,120]
[424976667,1781365851000,-7718.4,0.00028799,120]
[424976669,1781365851000,-7718.4,0.00028799,120]
[424976663,1781365851000,-151.0,0.00028797,7]
[424976661,1781365851000,-1000.0,0.00028767,40]
[424976658,1781365851000,-193.90900722,0.00028765,2]
[424976656,1781365851000,-605.237794,0.00028734,5]
[424976664,1781365851000,-7718.4,0.00028799,120]
[424976673,1781365851000,-500.0,0.00028799,120]
[424976727,1781365852000,-500.0,0.00029,2]
[424976736,1781365852000,-200.0,0.00029,2]
[424976726,1781365852000,-500.0,0.00029,2]
[424976720,1781365852000,-500.0,0.00029,2]
[424976729,1781365852000,-500.0,0.00029,2]
[424976732,1781365852000,-218.32,0.00029,2]
[424976730,1781365852000,-500.0,0.00029,2]
[424976731,1781365852000,-200.0,0.00029,2]
[424976737,1781365852000,-200.0,0.00029,2]
[424976739,1781365852000,-200.0,0.00029,2]
[424976735,1781365852000,-200.0,0.00029,2]
[424976733,1781365852000,-500.0,0.00029,2]
[424976738,1781365852000,-200.0,0.00029,2]
[424976740,1781365852000,-200.0,0.00029,2]
[424976742,1781365852000,-200.0,0.00029,2]
[424976747,1781365852000,-200.0,0.00029,2]
[424976741,1781365852000,-200.0,0.00029,2]
[424976743,1781365852000,-200.0,0.00029,2]
[424976746,1781365852000,-200.0,0.00029,2]
[424976728,1781365852000,-166.65960565,0.00029,2]
[424976734,1781365852000,-200.0,0.00029,2]
[424976725,1781365852000,-3068.0,0.00029,7]
[424976714,1781365852000,-500.0,0.00029,2]
[424976723,1781365852000,-500.0,0.00029,2]
[424976701,1781365852000,-20878.07718858,0.00028913,2]
[424976702,1781365852000,-200.0,0.00028914,2]
[424976707,1781365852000,-418.7138938,0.00028973,2]
[424976703,1781365852000,-200.0,0.00028915,2]
[424976700,1781365852000,-200.0,0.00028911,2]
[424976706,1781365852000,-370.37454567,0.00028973,2]
[424976705,1781365852000,-681.420981,0.00028973,2]
[424976708,1781365852000,-8423.47201282,0.00028973,2]
[424976704,1781365852000,-494.91526829,0.00028973,2]
[424976709,1781365852000,-500.0,0.00029,2]
[424976712,1781365852000,-500.0,0.00029,2]
[424976711,1781365852000,-500.0,0.00029,2]
[424976713,1781365852000,-500.0,0.00029,2]
[424976710,1781365852000,-500.0,0.00029,2]
[424976715,1781365852000,-500.0,0.00029,2]
[424976718,1781365852000,-500.0,0.00029,2]
[424976717,1781365852000,-500.0,0.00029,2]
[424976716,1781365852000,-500.0,0.00029,2]
[424976719,1781365852000,-500.0,0.00029,2]
[424976722,1781365852000,-500.0,0.00029,2]
[424976721,1781365852000,-500.0,0.00029,2]
[424976724,1781365852000,-5241.0,0.00029,2]
[424976745,1781365852000,-200.0,0.00029,2]
[424976753,1781365852000,-200.0,0.00029,2]
[424976749,1781365852000,-200.0,0.00029,2]
[424976767,1781365852000,-500.0,0.00029,2]
[424976777,1781365852000,-500.0,0.00029,2]
[424976783,1781365852000,-200.0,0.00029,2]
[424976784,1781365852000,-500.0,0.00029,2]
[424976776,1781365852000,-500.0,0.00029,2]
[424976782,1781365852000,-518.11125959,0.00029,2]
[424976780,1781365852000,-908.7,0.00029,7]
[424976785,1781365852000,-1000.0,0.00029,2]
[424976781,1781365852000,-250.0,0.00029,2]
[424976779,1781365852000,-241.78,0.00029,2]
[424976786,1781365852000,-1000.0,0.00029,2]
[424976787,1781365852000,-1019.6819,0.00029,2]
[424976788,1781365852000,-330.69,0.000291,7]
[424976789,1781365852000,-601.3,0.000291,2]
[424976790,1781365852000,-403.83,0.000291,2]
[424976795,1781365852000,-1326.0,0.00029148,30]
[424976791,1781365852000,-601.29,0.000291,2]
[424976794,1781365852000,-505.0,0.00029128,12]
[424976793,1781365852000,-249.0,0.0002911,30]
[424976792,1781365852000,-597.98,0.000291,7]
[424976744,1781365852000,-200.0,0.00029,2]
[424976770,1781365852000,-500.0,0.00029,2]
[424976773,1781365852000,-500.0,0.00029,2]
[424976778,1781365852000,-500.0,0.00029,2]
[424976771,1781365852000,-500.0,0.00029,2]
[424976769,1781365852000,-500.0,0.00029,2]
[424976755,1781365852000,-200.0,0.00029,2]
[424976756,1781365852000,-200.0,0.00029,2]
[424976748,1781365852000,-500.0,0.00029,2]
[424976750,1781365852000,-200.0,0.00029,2]
[424976751,1781365852000,-200.0,0.00029,2]
[424976752,1781365852000,-200.0,0.00029,2]
[424976757,1781365852000,-200.0,0.00029,2]
[424976759,1781365852000,-207.8116749,0.00029,2]
[424976758,1781365852000,-200.86,0.00029,2]
[424976761,1781365852000,-500.0,0.00029,2]
[424976754,1781365852000,-167.64625114,0.00029,2]
[424976774,1781365852000,-500.0,0.00029,2]
[424976762,1781365852000,-1105.64,0.00029,2]
[424976765,1781365852000,-200.0,0.00029,2]
[424976763,1781365852000,-527.67996953,0.00029,2]
[424976764,1781365852000,-500.0,0.00029,2]
[424976766,1781365852000,-500.0,0.00029,2]
[424976768,1781365852000,-500.0,0.00029,2]
[424976772,1781365852000,-500.0,0.00029,2]
[424976775,1781365852000,-500.0,0.00029,2]
[424976760,1781365852000,-240.16517662,0.00029,2]
[424976832,1781365853000,-503.78364564,0.00029428,7]
[424976828,1781365853000,-282.39741276,0.00029428,7]
[424976833,1781365853000,-239.02069321,0.00029428,7]
[424976830,1781365853000,-474.05427766,0.00029428,7]
[424976816,1781365853000,-2617.91,0.00029254,4]
[424976821,1781365853000,-908.7,0.000294,7]
[424976823,1781365853000,-885.06,0.00029427,120]
[424976827,1781365853000,-465.77781565,0.00029428,7]
[424976817,1781365853000,-632.0,0.00029302,2]
[424976826,1781365853000,-612.55081887,0.00029428,7]
[424976831,1781365853000,-473.38798113,0.00029428,7]
[424976837,1781365853000,-466.64346946,0.00029428,7]
[424976829,1781365853000,-525.94957235,0.00029428,7]
[424976836,1781365853000,-618.17200986,0.00029428,7]
[424976839,1781365853000,-366.68411622,0.00029428,2]
[424976835,1781365853000,-553.3455922,0.00029428,7]
[424976838,1781365853000,-310.78600431,0.00029428,2]
[424976841,1781365853000,-658.60490828,0.00029428,7]
[424976840,1781365853000,-243.43045025,0.00029428,7]
[424976842,1781365853000,-532.41983157,0.00029428,7]
[424976843,1781365853000,-581.26156841,0.00029428,7]
[424976844,1781365853000,-518.34317527,0.00029428,7]
[424976834,1781365853000,-493.86564749,0.00029428,7]
[424976822,1781365853000,-76709.1649754,0.00029425,2]
[424976796,1781365853000,-2822.0,0.00029148,30]
[424976818,1781365853000,-150.0,0.00029372,2]
[424976797,1781365853000,-321.0,0.00029148,30]
[424976799,1781365853000,-1210.0,0.00029148,30]
[424976846,1781365853000,-371.68417146,0.00029435,3]
[424976800,1781365853000,-445.0,0.00029148,30]
[424976803,1781365853000,-486.0,0.00029152,30]
[424976798,1781365853000,-222.0,0.00029148,30]
[424976802,1781365853000,-568.0,0.00029152,30]
[424976805,1781365853000,-403.0,0.00029152,30]
[424976804,1781365853000,-2065.0,0.00029152,30]
[424976807,1781365853000,-413.0,0.00029162,10]
[424976824,1781365853000,-475.31790411,0.00029428,7]
[424976806,1781365853000,-344.0,0.00029152,30]
[424976810,1781365853000,-573.37,0.00029192,2]
[424976809,1781365853000,-185.12,0.00029192,2]
[424976813,1781365853000,-151.0,0.00029195,2]
[424976815,1781365853000,-360.88,0.000292,30]
[424976811,1781365853000,-573.37,0.00029194,2]
[424976814,1781365853000,-151.0,0.00029195,2]
[424976812,1781365853000,-151.0,0.00029195,2]
[424976819,1781365853000,-255.88004941,0.00029387,2]
[424976820,1781365853000,-597.98,0.000294,7]
[424976825,1781365853000,-475.61591233,0.00029428,7]
[424976808,1781365853000,-152.0,0.00029163,30]
[424976845,1781365853000,-787.05,0.00029432,120]
[424976801,1781365853000,-419.0,0.00029152,30]
[424976854,1781365853000,-295.5913258,0.00029503,7]
[424976874,1781365853000,-520.21727634,0.0002951,5]
[424976880,1781365853000,-441.14913274,0.0002951,7]
[424976877,1781365853000,-452.80577407,0.0002951,7]
[424976883,1781365853000,-493.83286795,0.00029527,7]
[424976885,1781365853000,-738.45037744,0.00029527,7]
[424976879,1781365853000,-636.68317904,0.0002951,7]
[424976881,1781365853000,-200.66547314,0.00029527,7]
[424976878,1781365853000,-410.92829829,0.0002951,7]
[424976884,1781365853000,-504.38593834,0.00029527,7]
[424976882,1781365853000,-546.30068456,0.00029527,2]
[424976876,1781365853000,-389.6785586,0.0002951,7]
[424976886,1781365853000,-216.15153308,0.00029527,7]
[424976889,1781365853000,-233.49665667,0.00029527,7]
[424976890,1781365853000,-459.2162342,0.00029527,7]
[424976891,1781365853000,-480.57232737,0.00029527,7]
[424976892,1781365853000,-243.90191857,0.00029527,7]
[424976894,1781365853000,-160.06722887,0.00029527,7]
[424976896,1781365853000,-203.02214875,0.00029527,7]
[424976893,1781365853000,-573.85162156,0.00029527,7]
[424976897,1781365853000,-487.89979801,0.00029527,7]
[424976895,1781365853000,-605.65802548,0.00029527,7]
[424976847,1781365853000,-158.73194814,0.00029435,3]
[424976888,1781365853000,-815.71900493,0.00029527,7]
[424976873,1781365853000,-311.53820229,0.0002951,2]
[424976887,1781365853000,-599.89165003,0.00029527,7]
[424976869,1781365853000,-459.88123643,0.0002951,7]
[424976872,1781365853000,-496.5790067,0.0002951,7]
[424976853,1781365853000,-441.25321145,0.00029503,7]
[424976850,1781365853000,-165.86265129,0.0002948,2]
[424976848,1781365853000,-6109.89959964,0.00029435,3]
[424976851,1781365853000,-508.06620329,0.00029503,7]
[424976849,1781365853000,-235844.4599532,0.00029467,2]
[424976852,1781365853000,-248.85366096,0.00029503,7]
[424976857,1781365853000,-450.93580203,0.0002951,7]
[424976859,1781365853000,-474.58834871,0.0002951,7]
[424976858,1781365853000,-486.89501579,0.0002951,7]
[424976861,1781365853000,-513.28924917,0.0002951,7]
[424976855,1781365853000,-556.58237066,0.00029503,7]
[424976866,1781365853000,-482.90435318,0.0002951,7]
[424976856,1781365853000,-2617.91,0.00029504,6]
[424976863,1781365853000,-420.58201532,0.0002951,7]
[424976864,1781365853000,-564.02685916,0.0002951,7]
[424976865,1781365853000,-337.24003181,0.0002951,7]
[424976862,1781365853000,-608.96803162,0.0002951,7]
[424976867,1781365853000,-451.63088329,0.0002951,7]
[424976871,1781365853000,-353.45329022,0.0002951,2]
[424976868,1781365853000,-554.14156868,0.0002951,7]
[424976870,1781365853000,-310.30066638,0.0002951,7]
[424976860,1781365853000,-539.66583039,0.0002951,7]
[424976875,1781365853000,-494.05785594,0.0002951,5]
[424976913,1781365854000,-226.55809989,0.00029532,7]
[424976915,1781365854000,-223.82122667,0.00029532,7]
[424976928,1781365854000,-212.11512792,0.00029532,7]
[424976909,1781365854000,-245.06560329,0.00029532,7]
[424976916,1781365854000,-299.59002163,0.00029532,7]
[424976914,1781365854000,-232.40750546,0.00029532,7]
[424976923,1781365854000,-519.60994546,0.00029532,7]
[424976921,1781365854000,-173.73494006,0.00029532,7]
[424976922,1781365854000,-221.84390347,0.00029532,7]
[424976920,1781365854000,-165.31350154,0.00029532,7]
[424976917,1781365854000,-457.11762297,0.00029532,7]
[424976919,1781365854000,-225.80186222,0.00029532,7]
[424976918,1781365854000,-150.85547736,0.00029532,7]
[424976907,1781365854000,-283.562939,0.00029532,7]
[424976911,1781365854000,-239.56403361,0.00029532,7]
[424976910,1781365854000,-225.64017706,0.00029532,7]
[424976908,1781365854000,-284.3040931,0.00029532,7]
[424976902,1781365854000,-475.86506089,0.00029532,7]
[424976901,1781365854000,-229.25248672,0.00029532,7]
[424976900,1781365854000,-489.0,0.00029529,2]
[424976898,1781365854000,-301.14859397,0.00029527,7]
[424976903,1781365854000,-506.75590393,0.00029532,7]
[424976905,1781365854000,-484.9836487,0.00029532,7]
[424976906,1781365854000,-200.85507384,0.00029532,7]
[424976904,1781365854000,-472.65091924,0.00029532,7]
[424976899,1781365854000,-202.10294737,0.00029527,7]
[424976926,1781365854000,-454.64871402,0.00029532,7]
[424976912,1781365854000,-560.90592388,0.00029532,7]
[424976925,1781365854000,-519.80605187,0.00029532,7]
[424976940,1781365854000,-1998.9991099,0.000297,120]
[424976927,1781365854000,-215.50831126,0.00029532,7]
[424976953,1781365854000,-150.0,0.00029863,2]
[424976955,1781365854000,-6038.0,0.00029894,10]
[424976924,1781365854000,-476.31116847,0.00029532,7]
[424976952,1781365854000,-665.0,0.00029859,2]
[424976951,1781365854000,-452.0,0.00029819,2]
[424976950,1781365854000,-202.0,0.0002981,2]
[424976949,1781365854000,-452.0,0.00029806,2]
[424976957,1781365854000,-84.15510566,0.000299,30]